bitfinex/quotes_ETHUSD_20251116
["timestamp","ask_amount","ask_price","bid_price","bid_amount"]
[1763281042790,15.82140115,3214.5,3214.4,0.001]
[1763281044390,15.98409252,3214.5,3214.4,0.001]
[1763281045019,15.97869252,3214.5,3214.4,0.4782]
[1763281045172,12.69969252,3214.5,3214.4,0.9681]
[1763281046582,12.69969252,3214.5,3214.4,0.4782]
[1763281046779,13.0474292,3214.5,3214.4,0.4782]
[1763281046980,12.69969252,3214.5,3214.4,0.9681]
[1763281048300,14.33834892,3214.5,3214.4,0.9681]
[1763281049112,16.19548074,3214.5,3214.4,0.9681]
[1763281051624,1.5392448,3214.4,3214.1,0.1579]
[1763281051928,5.03503302,3214.2,3214.1,0.1579]
[1763281052132,5.32678132,3214.2,3214.1,0.1579]
[1763281052415,11.62678132,3214.2,3214.1,1.125]
[1763281053308,14.73797539,3214.2,3214.1,1.125]
[1763281053509,16.53727129,3214.2,3214.1,1.125]
[1763281053711,17.02554021,3214.2,3214.1,1.125]
[1763281054818,16.73379191,3214.2,3214.1,1.125]
[1763281055014,17.0255577,3214.2,3214.1,1.125]
[1763281055718,17.0255577,3214.2,3214.1,0.4782]
[1763281056645,17.0255577,3214.2,3214.1,0.001]
[1763281056646,21.60249438,3214.2,3214.1,0.001]
[1763281056843,21.11422546,3214.2,3214.1,0.001]
[1763281057065,21.60912546,3214.2,3214.1,0.001]
[1763281058052,21.95668195,3214.2,3214.1,0.001]
[1763281058642,20.31118878,3214.2,3214.1,0.001]
[1763281059534,20.80558878,3214.2,3214.1,0.001]
[1763281059944,21.26138878,3214.2,3214.1,0.001]
[1763281060539,21.15332546,3214.2,3214.1,0.001]
[1763281060846,17.37992546,3214.2,3214.1,0.4556]
[1763281061056,11.22129481,3214.2,3214.1,1.1082]
[1763281061547,11.62679881,3214.2,3214.1,1.1082]
[1763281061745,11.62679881,3214.2,3214.1,0.6133]
[1763281061746,14.73799288,3214.2,3214.1,0.6133]
[1763281062133,14.73799288,3214.2,3214.1,1.1082]
[1763281063532,14.73799288,3214.2,3214.1,0.6133]
[1763281063847,14.73799288,3214.2,3214.1,0.4556]
[1763281064333,16.55768031,3214.2,3214.1,0.4556]
[1763281064523,17.04595532,3214.2,3214.1,0.4556]
[1763281064724,17.54085532,3214.2,3214.1,0.4556]
[1763281066161,18.03525532,3214.2,3214.1,0.001]
[1763281066444,17.54085532,3214.2,3214.1,0.001]
[1763281066671,21.77005532,3214.2,3214.1,0.001]
[1763281066816,21.77005532,3214.2,3213.7,0.001]
[1763281066817,5.03503302,3213.8,3213.7,0.001]
[1763281067017,11.62679881,3213.8,3213.7,0.001]
[1763281067364,14.73838011,3213.8,3213.7,0.001]
[1763281067575,15.23328011,3213.8,3213.7,0.001]
[1763281068348,15.23328011,3213.8,3213.7,0.4556]
[1763281068661,16.1867326,3213.8,3213.7,0.4556]
[1763281069457,15.6918326,3213.8,3213.7,0.9505]
[1763281069766,14.73838011,3213.8,3213.7,0.9505]
[1763281069968,14.73838011,3213.8,3213.7,0.4556]
[1763281070324,11.62679881,3213.8,3213.7,0.9505]
[1763281070526,14.73838011,3213.8,3213.7,0.4556]
[1763281070864,16.52337032,3213.8,3213.7,0.4556]
[1763281071169,16.52337032,3213.8,3213.7,0.9505]
[1763281071683,16.52337032,3213.8,3213.7,0.4556]
[1763281071888,16.52337032,3213.8,3213.7,0.001]
[1763281072033,20.75237032,3213.8,3213.7,0.001]
[1763281072231,21.90346349,3213.8,3213.7,0.001]
[1763281072464,21.44766349,3213.8,3213.7,0.001]
[1763281072640,21.90346349,3213.8,3213.7,0.001]
[1763281073260,21.90292505,3213.8,3213.7,0.001]
[1763281074647,22.06565725,3213.8,3213.7,0.001]
[1763281076658,22.06565725,3213.8,3213.6,0.001]
[1763281076843,7.27391503,3213.7,3213.3,0.001]
[1763281077059,8.80373302,3213.4,3213.3,0.001]
[1763281077256,9.79025354,3213.4,3213.3,0.001]
[1763281077462,10.24605354,3213.4,3213.3,0.001]
[1763281077666,10.24605354,3213.4,3210.7,0.1577]
[1763281077667,3.279,3213.2,3211.6,0.4949]
[1763281077967,1.5392448,3213.3,3211.9,0.6853]
[1763281077968,5.03503302,3212.0,3211.9,0.6853]
[1763281078170,5.32626037,3212.0,3211.9,0.6853]
[1763281078338,5.32626037,3212.0,3211.9,1.1399]
[1763281078539,8.4395854,3212.0,3211.9,1.1399]
[1763281078741,5.32626037,3212.0,3211.9,1.1399]
[1763281079374,8.4395854,3212.0,3211.9,1.1399]
[1763281079741,5.32626037,3212.0,3211.9,1.1399]
[1763281080460,3.78701557,3212.0,3211.9,1.1399]
[1763281080657,0.15807125,3212.9,3211.9,1.1399]
[1763281080995,3.49578822,3212.0,3211.9,0.1904]
[1763281081347,1.74789411,3212.0,3211.9,1.1399]
[1763281081546,3.49578822,3212.0,3211.9,1.1399]
[1763281081987,4.62952902,3212.0,3211.9,1.1399]
[1763281082346,1.74789411,3212.4,3211.9,1.1399]
[1763281082543,3.49578822,3212.0,3211.9,0.1904]
[1763281082979,3.49578822,3212.0,3211.9,1.1399]
[1763281084953,1.74789411,3212.0,3211.9,1.1399]
[1763281085154,1.74789411,3212.2,3211.9,1.1399]
[1763281085358,1.74789411,3212.4,3212.3,0.4608]
[1763281085558,4.62952902,3212.4,3212.3,0.4608]
[1763281085752,4.62952902,3212.4,3212.3,0.9396]
[1763281085968,1.74789411,3212.4,3212.3,0.9396]
[1763281086501,1.74789411,3212.8,3212.3,0.9396]
[1763281086502,1.74789411,3212.6,3212.3,0.9396]
[1763281086662,1.74789411,3212.6,3212.4,0.4788]
[1763281086993,1.74789411,3212.8,3212.5,0.4608]
[1763281087161,1.74789411,3212.8,3212.4,0.4788]
[1763281087162,1.74789411,3212.8,3212.7,0.4608]
[1763281087360,1.74789411,3212.8,3212.7,0.9396]
[1763281087761,0.1627322,3213.8,3212.7,0.9396]
[1763281087968,0.5682362,3213.8,3213.7,0.4608]
[1763281088168,5.19776522,3213.8,3213.7,0.4608]
[1763281088372,8.30934652,3213.8,3213.7,0.4608]
[1763281088773,8.30934652,3213.8,3211.9,0.1914]
[1763281088774,1.5392448,3213.7,3213.2,0.1972]
[1763281088970,1.1337408,3213.2,3212.9,0.1972]
[1763281089170,1.1337408,3213.7,3212.9,0.1972]
[1763281089171,2.88163491,3213.0,3212.9,0.1972]
[1763281089677,2.88163491,3213.0,3212.9,0.658]
[1763281089871,3.28713891,3213.0,3212.9,0.4608]
[1763281090103,3.79064221,3213.0,3212.9,0.4608]
[1763281090691,6.90299826,3213.0,3212.9,0.4608]
[1763281091596,3.79064221,3213.0,3212.9,0.4608]
[1763281091763,6.22490584,3212.9,3211.9,0.1914]
[1763281091963,0.405504,3212.7,3212.0,0.4788]
[1763281092169,0.405504,3212.8,3212.0,0.4788]
[1763281092594,0.405504,3212.9,3212.7,0.4608]
[1763281092899,0.29056628,3212.8,3212.1,0.03113228]
[1763281093099,1.1337408,3212.1,3212.0,0.4788]
[1763281093300,0.29056628,3212.1,3212.0,0.4788]
[1763281093504,0.29056628,3212.1,3212.0,0.97073325]
[1763281093680,1.74789411,3212.3,3212.0,0.9396]
[1763281093876,1.74789411,3212.8,3211.9,0.1914]
[1763281093877,1.74789411,3212.4,3212.1,0.4788]
[1763281094287,1.74789411,3212.4,3212.3,0.4526]
[1763281094591,2.03859513,3212.4,3212.3,0.4526]
[1763281094797,2.03859513,3212.4,3212.3,0.9417]
[1763281095367,4.92023004,3212.4,3212.3,0.9417]
[1763281102722,3.17233593,3212.4,3212.3,0.9417]
[1763281103125,4.92023004,3212.4,3212.3,0.9417]
[1763281103536,3.17233593,3212.4,3212.3,0.9417]
[1763281103703,4.92023004,3212.4,3212.3,0.9417]
[1763281105330,4.92223004,3212.4,3212.3,0.9417]
[1763281107731,3.17433593,3212.4,3212.3,0.9417]
[1763281107903,0.29270102,3212.4,3212.3,0.9417]
[1763281108918,2.04059513,3212.4,3212.3,0.9417]
[1763281111007,0.29270102,3212.4,3212.3,0.9417]
[1763281115633,0.50830102,3212.4,3212.0,0.001]
[1763281115833,1.63884509,3212.1,3212.0,0.001]
[1763281116143,1.92954611,3212.1,3212.0,0.4894]
[1763281116353,1.92954611,3212.1,3212.0,0.9679]
[1763281116568,0.29070102,3212.1,3212.0,0.9679]
[1763281117558,1.92954611,3212.1,3212.0,0.4795]
[1763281118324,1.92954611,3212.1,3212.0,0.9679]
[1763281118955,1.92954611,3212.1,3212.0,0.4795]
[1763281119120,1.92954611,3212.1,3212.0,0.9679]
[1763281120744,2.79814611,3212.1,3212.0,0.001]
[1763281120949,4.12484152,3212.1,3212.0,0.001]
[1763281121133,3.93188691,3212.1,3212.0,0.001]
[1763281121957,4.33739091,3212.1,3212.0,0.001]
[1763281122833,7.45061901,3212.1,3212.0,0.001]
[1763281124362,7.45261901,3212.1,3212.0,0.001]
[1763281127556,7.45261901,3212.1,3211.9,0.001]
[1763281127557,1.1337408,3212.0,3211.9,0.001]
[1763281127732,0.405504,3211.9,3211.6,0.001]
[1763281127928,3.76108989,3211.7,3211.6,0.001]
[1763281128160,4.05179091,3211.7,3211.6,0.001]
[1763281128332,4.52059091,3211.7,3211.6,0.001]
[1763281129150,4.05179091,3211.7,3211.6,0.001]
[1763281129355,5.08697,3211.7,3211.6,0.001]
[1763281129564,5.55577,3211.7,3211.6,0.001]
[1763281131563,1.42444182,3211.7,3211.6,0.4795]
[1763281131739,3.06328691,3211.7,3211.6,0.4795]
[1763281132264,3.06328691,3211.7,3211.6,0.001]
[1763281132470,3.44718691,3211.7,3211.6,0.001]
[1763281132777,3.91608691,3211.7,3211.6,0.001]
[1763281133673,1.92954611,3211.7,3211.6,0.4795]
[1763281133876,1.92954611,3211.7,3211.6,0.9679]
[1763281138957,1.92954611,3211.7,3211.6,0.4795]
[1763281141259,3.43638691,3211.7,3211.6,0.001]
[1763281141461,3.90518691,3211.7,3211.6,0.001]
[1763281141789,3.43638691,3211.7,3211.6,0.001]
[1763281142869,3.90518691,3211.7,3211.6,0.001]
[1763281143079,1.5392448,3211.6,3211.5,0.001]
[1763281143274,1.17060502,3211.6,3211.5,0.001]
[1763281143667,2.30434582,3211.6,3211.5,0.001]
[1763281144171,1.17060502,3211.6,3211.5,0.001]
[1763281144505,0.405504,3211.4,3211.2,0.001]
[1763281144665,2.42154611,3211.3,3211.2,0.001]
[1763281145164,3.90628691,3211.3,3211.2,0.001]
[1763281146816,3.55528691,3211.3,3211.2,0.001]
[1763281146978,3.90628691,3211.3,3211.2,0.001]
[1763281147176,4.2969156,3211.3,3211.2,0.001]
[1763281147672,3.9459156,3211.3,3211.2,0.001]
[1763281148506,4.2969156,3211.3,3211.2,0.001]
[1763281152510,3.9459156,3211.3,3211.2,0.001]
[1763281152697,4.2969156,3211.3,3211.2,0.001]
[1763281155374,4.29721682,3211.3,3211.2,0.001]
[1763281156008,3.45421682,3211.3,3211.2,0.4631]
[1763281156214,3.06358813,3211.3,3211.2,0.9145]
[1763281158022,3.06358813,3211.3,3211.2,0.4631]
[1763281158587,3.06358813,3211.3,3211.2,0.9145]
[1763281158778,0.6473,3211.9,3211.2,0.9145]
[1763281158779,0.4651,3211.9,3211.2,0.9145]
[1763281158995,0.29124304,3211.8,3211.3,0.4514]
[1763281159194,0.29124304,3211.7,3211.3,0.4514]
[1763281159483,0.29124304,3211.6,3211.3,0.4514]
[1763281159683,0.29124304,3211.5,3211.3,0.4514]
[1763281159999,0.29124304,3211.4,3211.3,0.4514]
[1763281160396,0.29124304,3211.4,3211.3,0.9135]
[1763281167359,1.93008813,3211.4,3211.3,0.9135]
[1763281167715,1.93008813,3211.4,3211.3,0.4621]
[1763281168044,1.93008813,3211.4,3211.3,0.9135]
[1763281169228,1.93008813,3211.4,3211.3,0.4621]
[1763281169411,1.93008813,3211.4,3211.3,0.9135]
[1763281170842,2.04045772,3211.4,3211.3,0.9135]
[1763281171019,0.29124304,3211.4,3211.3,0.9135]
[1763281171221,2.04045772,3211.4,3211.3,0.9135]
[1763281172954,1.1337408,3211.3,3211.2,0.001]
[1763281173134,1.91848384,3211.3,3211.2,0.001]
[1763281173856,2.49853516,3211.3,3211.2,0.001]
[1763281174061,2.88114347,3211.3,3211.2,0.001]
[1763281178482,2.04036603,3211.3,3211.2,0.9112]
[1763281179646,2.04036603,3211.3,3211.2,0.4548]
[1763281180051,2.04036603,3211.3,3211.2,0.9112]
[1763281180367,2.04036603,3211.3,3211.2,0.4548]
[1763281180568,2.04036603,3211.3,3211.2,0.9112]
[1763281182370,0.29115135,3211.3,3211.2,0.9112]
[1763281187282,0.002,3211.5,3211.2,0.942341]
[1763281187475,0.002,3211.5,3211.4,0.4538]
[1763281187675,0.29362716,3211.5,3211.4,0.4538]
[1763281187881,0.29362716,3211.5,3211.4,0.9102]
[1763281188380,0.002,3211.5,3211.4,0.9102]
[1763281188585,0.002,3211.5,3211.4,1.3854161]
[1763281189464,0.002,3211.5,3211.4,3.10349172]
[1763281190100,0.002,3211.5,3211.4,1.35427704]
[1763281192188,0.002,3211.5,3211.4,0.9102]
[1763281194983,0.002,3211.5,3211.4,0.4538]
[1763281195186,0.002,3211.5,3211.4,0.9102]
[1763281198900,0.002,3211.5,3211.4,0.9112]
[1763281200427,0.002,3211.5,3211.4,2.69155374]
[1763281200627,0.002,3211.5,3211.4,1.35537684]
[1763281201195,0.002,3211.5,3211.4,0.9112]
[1763281201630,0.002,3211.5,3211.4,0.4548]
[1763281202222,0.002,3211.5,3211.4,0.9112]
[1763281202422,0.002,3211.5,3211.4,0.4548]
[1763281203427,0.002,3211.5,3211.4,0.9112]
[1763281205732,0.002,3211.5,3211.4,0.4548]
[1763281206232,0.002,3211.5,3211.4,0.9173]
[1763281207027,0.002,3211.5,3211.4,0.4548]
[1763281207216,0.002,3211.5,3211.4,0.9173]
[1763281207616,0.002,3211.5,3211.4,0.4923]
[1763281207826,0.002,3211.5,3211.4,0.001]
[1763281211438,0.002,3211.5,3211.4,0.4923]
[1763281215151,0.002,3211.5,3211.4,0.001]
[1763281215443,1.9974408,3211.5,3211.4,0.001]
[1763281215615,2.288992,3211.5,3211.4,0.001]
[1763281216317,1.800992,3211.5,3211.4,0.001]
[1763281217421,2.288992,3211.5,3211.4,0.001]
[1763281217958,2.28910444,3211.5,3211.4,0.001]
[1763281218863,1.80110444,3211.5,3211.4,0.001]
[1763281219365,2.28910444,3211.5,3211.4,0.001]
[1763281220954,2.28913148,3211.5,3211.4,0.001]
[1763281222064,1.80113148,3211.5,3211.4,0.001]
[1763281222425,1.42743148,3211.5,3211.4,0.461]
[1763281224058,1.80583148,3211.5,3211.4,0.001]
[1763281225063,2.29273148,3211.5,3211.4,0.001]
[1763281225430,2.87184756,3211.5,3211.4,0.001]
[1763281226570,2.29273148,3211.5,3211.4,0.001]
[1763281230937,3.93288135,3211.5,3211.4,0.001]
[1763281233112,3.93288135,3211.5,3211.4,0.461]
[1763281233113,3.06758135,3211.5,3211.4,0.461]
[1763281233504,3.06758135,3211.5,3211.4,0.001]
[1763281233505,3.44708135,3211.5,3211.4,0.001]
[1763281233713,3.93288135,3211.5,3211.4,0.001]
[1763281233896,3.06758135,3211.5,3211.4,0.461]
[1763281234090,1.42743148,3211.5,3211.4,0.461]
[1763281234311,1.1357408,3211.5,3211.4,0.9332]
[1763281236380,2.77589067,3211.5,3211.4,0.9332]
[1763281236678,3.06725194,3211.5,3211.4,0.461]
[1763281236875,3.06725194,3211.5,3211.4,0.4823]
[1763281241029,3.06725194,3211.5,3211.4,0.9775]
[1763281241337,3.06725194,3211.5,3211.4,0.4823]
[1763281243442,3.06725194,3211.5,3211.4,0.9775]
[1763281246112,3.06732542,3211.5,3211.4,0.9775]
[1763281248452,0.002,3211.5,3211.4,0.9775]
[1763281248630,0.002,3211.5,3211.4,1.91300474]
[1763281248834,0.002,3211.5,3211.4,2.10440521]
[1763281251155,0.002,3211.5,3211.4,2.13554427]
[1763281251947,0.002,3211.5,3211.4,2.54104827]
[1763281252241,0.002,3211.9,3211.5,0.405504]
[1763281252442,0.002,3211.9,3211.8,2.52695387]
[1763281252741,0.002,3211.9,3211.8,2.81078444]
[1763281253055,0.002,3211.9,3211.8,3.43068613]
[1763281254021,0.002,3211.9,3211.8,4.56442693]
[1763281254247,0.0009,3211.9,3211.8,7.67794582]
[1763281254465,0.0009,3211.9,3211.8,7.64681064]
[1763281254827,0.0009,3211.9,3211.8,6.51306984]
[1763281255156,0.0009,3211.9,3211.8,1.75940108]
[1763281256368,0.0009,3211.9,3211.8,4.87291997]
[1763281256674,0.0009,3211.9,3211.8,1.75940108]
[1763281256876,0.0009,3211.9,3211.8,4.87291997]
[1763281257081,0.0009,3211.9,3211.8,6.54420502]
[1763281257283,0.0009,3211.9,3211.8,7.64681064]
[1763281263167,0.0009,3211.9,3211.8,11.47681064]
[1763281263696,0.002,3212.6,3212.3,0.405504]
[1763281263874,0.002,3212.6,3212.3,6.85215387]
[1763281264194,0.002,3212.6,3212.3,7.56703926]
[1763281264406,0.002,3212.6,3212.3,7.69168072]
[1763281265186,0.002,3212.6,3212.3,10.80471499]
[1763281267290,0.002,3212.6,3212.3,11.19920105]
[1763281268199,0.002,3212.6,3212.3,15.83695061]
[1763281268407,0.002,3212.6,3212.5,3.65589467]
[1763281268567,0.002,3212.6,3212.5,4.05038073]
[1763281268768,0.002,3212.6,3212.5,5.01538073]
[1763281269099,0.002,3214.0,3212.7,0.405504]
[1763281269298,0.002,3214.0,3213.9,0.882004]
[1763281269501,0.002,3214.0,3213.9,1.44537904]
[1763281269704,0.4281,3214.0,3213.9,0.876504]
[1763281270005,0.4281,3214.0,3213.6,1.64014987]
[1763281270200,0.4281,3214.0,3213.9,0.4686]
[1763281270408,0.4281,3214.0,3213.9,0.9451]
[1763281270409,0.002,3214.0,3213.9,0.9451]
[1763281270627,0.4861,3214.0,3213.9,0.4686]
[1763281270830,0.002,3214.0,3213.9,1.15597499]
[1763281271036,0.002,3214.0,3213.9,0.9451]
[1763281272030,0.002,3214.0,3213.9,1.350604]
[1763281273121,0.002,3214.0,3213.9,3.00945964]
[1763281273321,0.002,3214.4,3214.0,0.405504]
[1763281273538,0.002,3214.4,3214.3,3.85109467]
[1763281273708,0.002,3214.4,3214.3,4.2704264]
[1763281273910,0.002,3214.4,3214.3,4.69191543]
[1763281274108,0.002,3214.4,3214.3,4.84760963]
[1763281274509,0.002,3214.7,3214.4,1.5392448]
[1763281274713,0.002,3215.8,3214.7,1.5392448]
[1763281274925,0.002,3215.8,3214.8,0.405504]
[1763281275129,0.002,3215.8,3215.0,3.77409466]
[1763281275302,0.002,3215.8,3215.2,1.5392448]
[1763281275499,0.002,3216.2,3215.7,0.4947]
[1763281275728,0.002,3216.7,3216.2,1.5392448]
[1763281276000,0.002,3216.7,3216.6,0.4947]
[1763281276200,0.002,3216.7,3216.5,1.64014987]
[1763281276540,0.002,3216.7,3216.6,2.4865448]
[1763281277041,0.002,3216.7,3216.6,4.77090453]
[1763281277804,0.002,3216.7,3216.6,7.87977725]
[1763281278028,0.002,3216.7,3216.6,8.66775498]
[1763281278429,0.002,3216.7,3216.6,5.55888226]
[1763281279004,0.002,3216.7,3216.6,8.66775498]
[1763281279204,0.002,3216.7,3216.6,5.55888226]
[1763281279644,0.002,3216.7,3216.6,8.66775498]
[1763281279816,0.002,3216.7,3216.6,5.68337979]
[1763281280213,0.002,3216.7,3216.6,8.79225251]
[1763281281240,0.002,3216.7,3216.6,9.19473068]
[1763281281632,0.002,3216.7,3216.6,8.79225251]
[1763281282653,0.002,3216.7,3216.6,2.99351606]
[1763281282955,0.002,3216.7,3216.6,6.50789278]
[1763281283265,0.002,3216.7,3216.6,6.10238878]
[1763281283745,0.002,3216.7,3216.6,6.50789278]
[1763281284249,0.002,3216.7,3216.6,2.54091606]
[1763281284410,0.002,3216.7,3216.6,2.94642006]
[1763281285346,0.002,3216.7,3216.6,5.26731505]
[1763281286120,0.002,3216.7,3216.6,2.15844233]
[1763281286758,0.0703,3216.7,3216.6,1.25823833]
[1763281286956,0.5513,3216.7,3216.6,1.66374233]
[1763281287141,0.5513,3216.7,3216.6,0.69637576]
[1763281287341,0.5513,3216.7,3216.6,0.53000153]
[1763281288159,0.5513,3216.7,3216.6,0.12449753]
[1763281288922,0.5513,3216.7,3215.1,0.1853]
[1763281289127,0.0714,3215.2,3215.0,3.11041614]
[1763281289454,2.28435973,3216.5,3215.9,0.5513]
[1763281289656,0.481,3216.4,3215.9,0.5513]
[1763281289825,0.4482,3216.0,3215.9,0.5513]
[1763281290224,0.9289,3216.0,3215.9,0.5513]
[1763281291647,0.9289,3216.0,3214.7,4.02808026]
[1763281291874,0.0048,3215.5,3214.8,0.40280803]
[1763281292158,0.0048,3215.5,3214.9,0.405504]
[1763281292334,0.0048,3215.5,3214.8,4.64711784]
[1763281292335,0.4858,3215.5,3214.8,2.47086776]
[1763281292662,0.4858,3215.5,3215.0,0.405504]
[1763281293044,0.481,3215.5,3215.1,0.24735637]
[1763281293282,0.481,3215.8,3215.2,0.03110226]
[1763281293452,0.481,3215.8,3215.5,0.405504]
[1763281293654,0.4482,3215.3,3215.0,0.405504]
[1763281293874,0.481,3215.8,3215.0,0.405504]
[1763281294152,0.481,3215.8,3215.2,0.405504]
[1763281294374,0.481,3215.8,3215.4,0.405504]
[1763281294765,0.4482,3215.5,3215.4,0.405504]
[1763281295364,0.4482,3215.5,3215.4,0.886504]
[1763281296916,0.002,3216.8,3215.5,0.405504]
[1763281297091,0.455,3216.5,3215.7,0.405504]
[1763281297252,0.455,3216.5,3215.9,0.405504]
[1763281297453,0.455,3216.5,3216.1,0.405504]
[1763281297880,0.456,3216.2,3216.1,0.405504]
[1763281298096,0.456,3216.2,3215.6,0.405504]
[1763281298268,0.911,3216.2,3215.6,3.51533183]
[1763281298470,0.911,3216.2,3216.1,0.405504]
[1763281301780,0.911,3216.2,3215.3,3.83]
[1763281301981,0.0247,3215.4,3215.3,4.235504]
[1763281302182,0.0247,3215.4,3215.2,3.83]
[1763281302406,0.0247,3215.4,3215.3,0.69402508]
[1763281302607,0.0247,3215.4,3215.3,2.03372872]
[1763281302995,0.1897,3215.7,3215.4,0.405504]
[1763281303413,0.455,3215.8,3215.4,0.405504]
[1763281303583,0.455,3215.8,3215.5,0.93419964]
[1763281303985,0.455,3215.8,3215.5,1.13757251]
[1763281304208,0.456,3215.6,3215.5,1.13757251]
[1763281304425,0.456,3215.6,3215.2,0.405504]
[1763281304719,0.456,3215.2,3215.0,3.83]
[1763281305017,0.0247,3215.1,3214.6,4.24448887]
[1763281305177,0.456,3214.9,3214.5,3.83]
[1763281305380,0.456,3214.9,3214.6,1.1337408]
[1763281305580,0.911,3214.9,3214.7,0.405504]
[1763281305807,0.911,3214.9,3214.8,1.33988404]
[1763281305995,0.455,3215.5,3215.1,0.001]
[1763281306397,0.456,3215.2,3215.1,0.001]
[1763281306808,0.456,3215.2,3215.1,0.457]
[1763281307130,0.911,3215.2,3215.1,0.457]
[1763281307689,0.455,3215.6,3215.1,0.457]
[1763281308095,0.455,3215.6,3215.1,0.001]
[1763281308326,0.455,3215.6,3215.2,0.93435385]
[1763281310657,0.456,3215.3,3215.2,0.93435385]
[1763281311259,0.1897,3215.9,3215.2,0.93435385]
[1763281311465,0.455,3215.7,3215.2,0.93435385]
[1763281314078,0.456,3215.3,3215.2,0.93435385]
[1763281316579,0.455,3215.8,3215.2,1.40765385]
[1763281316875,0.455,3215.8,3215.3,0.46723031]
[1763281317388,0.455,3215.8,3215.3,1.40152014]
[1763281317587,0.455,3215.8,3215.3,0.93428983]
[1763281317876,0.455,3215.8,3215.2,0.405504]
[1763281318074,0.455,3215.8,3215.2,1.33979383]
[1763281318458,0.455,3215.8,3215.2,0.405504]
[1763281318459,0.456,3215.3,3215.2,0.405504]
[1763281318954,0.456,3215.3,3215.2,0.861504]
[1763281319153,0.1897,3215.9,3215.2,0.9293]
[1763281319154,0.455,3215.8,3215.2,0.9293]
[1763281319889,0.455,3215.8,3215.2,0.4733]
[1763281320179,0.455,3215.8,3215.3,0.93428983]
[1763281320777,0.1897,3215.9,3215.3,0.93428983]
[1763281321577,0.6447,3215.9,3215.3,0.93428983]
[1763281323351,0.1897,3215.9,3215.3,0.93428983]
[1763281323550,0.456,3215.4,3215.3,0.93428983]
[1763281325087,0.455,3215.7,3215.3,1.43178983]
[1763281325472,0.4761,3215.4,3215.1,0.406504]
[1763281326154,0.1897,3215.9,3215.2,0.4761]
[1763281326357,0.4705,3215.3,3215.2,0.881604]
[1763281326554,0.9313,3215.3,3215.2,0.881604]
[1763281326972,0.4608,3215.3,3215.2,0.881604]
[1763281333117,0.4608,3215.3,3215.2,0.405504]
[1763281334281,0.1897,3215.9,3215.2,0.893204]
[1763281334508,0.4816,3215.7,3215.2,0.893204]
[1763281335214,0.4816,3215.7,3215.3,0.4004525]
[1763281335419,0.4816,3215.7,3215.2,0.893204]
[1763281335716,0.4816,3215.7,3215.2,0.405504]
[1763281335920,0.4498,3215.3,3215.2,0.405504]
[1763281336923,0.4816,3215.7,3215.2,0.405504]
[1763281337122,0.002,3216.2,3215.7,0.405504]
[1763281337426,0.002,3216.2,3216.0,1.74418229]
[1763281337844,0.002,3216.2,3216.1,0.4877]
[1763281338005,0.002,3216.2,3216.1,1.358304]
[1763281338328,0.002,3216.2,3216.1,2.4920448]
[1763281340336,0.002,3216.2,3216.1,5.60140085]
[1763281340504,0.002,3216.2,3216.1,6.82133175]
[1763281344096,0.002,3216.2,3216.1,10.65133175]
[1763281344503,0.002,3216.2,3216.1,10.77582618]
[1763281345043,0.002,3216.2,3216.1,12.81388915]
[1763281348118,0.002,3216.5,3216.1,19.43507942]
[1763281348319,0.002,3216.5,3216.4,4.06500777]
[1763281348522,0.002,3216.5,3216.4,4.09609843]
[1763281348722,0.002,3216.5,3216.4,7.79474339]
[1763281349009,0.002,3216.5,3216.4,7.76365273]
[1763281350606,0.002,3216.5,3216.4,11.9961309]
[1763281350938,0.002,3216.9,3216.5,1.5392448]
[1763281351107,0.002,3216.9,3216.5,2.52313449]
[1763281351626,0.002,3216.9,3216.5,2.64760684]
[1763281352731,0.002,3216.9,3216.5,5.75657621]
[1763281353024,0.002,3216.9,3216.5,8.44264926]
[1763281353223,0.002,3216.9,3216.5,10.07313305]
[1763281354145,0.002,3216.9,3216.5,13.90313305]
[1763281354512,0.002,3216.9,3216.5,16.78465488]
[1763281356044,0.002,3216.9,3216.5,10.75196]
[1763281356230,0.4538,3216.6,3216.5,8.60054285]
[1763281356540,0.002,3216.6,3216.5,9.49814685]
[1763281356743,0.002,3216.6,3216.5,10.63188765]
[1763281356946,0.002,3216.6,3216.5,10.22638365]
[1763281357117,0.4408,3216.6,3216.5,8.60054285]
[1763281357318,0.4408,3216.6,3216.5,9.00604685]
[1763281357527,0.4408,3216.6,3216.5,10.13978765]
[1763281358124,0.002,3216.6,3216.5,10.63188765]
[1763281358325,0.002,3216.6,3216.5,11.50036582]
[1763281358526,0.002,3216.6,3216.5,11.09788765]
[1763281359325,0.002,3216.6,3216.5,14.38188765]
[1763281359648,0.002,3216.6,3216.5,14.50636465]
[1763281361549,0.002,3216.8,3216.6,8.6512448]
[1763281361749,0.002,3216.8,3216.6,12.19568823]
[1763281361952,0.002,3216.8,3216.6,12.58666272]
[1763281362246,0.002,3216.8,3216.6,19.20112151]
[1763281363449,0.002,3217.0,3216.9,4.8232448]
[1763281363648,0.002,3217.0,3216.9,8.36063151]
[1763281363820,0.002,3217.0,3216.9,8.79554569]
[1763281364017,0.002,3217.0,3216.9,8.91999171]
[1763281365554,0.002,3217.0,3216.9,12.0285745]
[1763281366546,0.002,3217.0,3216.9,15.8565745]
[1763281367918,0.4505,3217.0,3216.9,8.92537562]
[1763281368118,0.4505,3217.0,3216.9,6.12278368]
[1763281368339,0.9057,3217.0,3216.9,6.12278368]
[1763281368558,0.9057,3217.0,3216.9,0.73060601]
[1763281368738,0.9057,3217.0,3216.8,3.10862973]
[1763281368920,0.9057,3217.0,3216.2,2.28359488]